Cogmind - Beta 16 @@@ ROGUE MODE // 2025.12.15 @ 19:27:10 Player: obl-vn Result: Destroyed by GY-E70(j) with Overtuned Pulse Rifle Performance ------------- Evolutions (0) 0 Regions Visited (4) 800 Robots Destroyed (47) 235 Value Destroyed (1357) 1357 Prototype IDs (12) 240 Alien Tech Used (0) 0 Bonus (761) 761 TOTAL SCORE: 3393 Bonus ------- Registered with UFD 300 Met Optimus in HQ 500 Friendly Fire -39 Cogmind --------- Core Integrity 0/250 Matter 292/300 Energy 221/240 System Corruption 0% Temperature Cool (12) Movement Treading (330) Ox2 Location -8/Scraptown Parts ------- > --- POWER (1) -------- Nuclear Core > --- PROPULSION (2) --- Armored Treads Armored Treads > --- UTILITY (2) ------ Huge Storage Unit Improved Light Armor Plating > --- WEAPON (2) ------- Ion Cannon Barrage Gun > --- INVENTORY (25) --- Armored Treads Armored Treads Flightbrick Advanced Targeting Computer Particle Charger Improved Particle Charger Expert System Tower Shield Hardlight Generator Hacking Suite Makeshift Hacking Suite A0-MCA's Component Scanner Scrapoid Pod Particle Cannon Shock Bomb Launcher Heavy Mace DRS Beacon (Ready) Peak State ------------ > --- POWER ------------ Light Fission Core > --- PROPULSION ------- Armored Treads Armored Treads > --- UTILITY ---------- Huge Storage Unit Improved Light Armor Plating > --- WEAPON ----------- Ion Cannon Barrage Gun > --- INVENTORY -------- Nuclear Core Armored Treads Armored Treads Flightbrick Cooling System Advanced Targeting Computer Particle Charger Improved Particle Charger Tower Shield Hardlight Generator Hacking Suite A0-MCA's Component Scanner Scrapoid Pod Particle Cannon Particle Cannon Shock Bomb Launcher Heavy Mace DRS Beacon [Rating: 33] Favorites ----------- Power Light Fission Core Engine Ion Engine Power Core Light Fission Core Propulsion Light Treads Treads Light Treads Wheel Compact Wheel Utility Medium Armor Plating Device Improved Terrain Scanner Storage Huge Storage Unit Processor Machine Analyzer Protection Medium Armor Plating Weapon Improved Light Cannon Energy Gun EM Pulse Gun Energy Cannon Particle Cannon Ballistic Gun Barrage Gun Ballistic Cannon Improved Light Cannon Launcher Grenade Launcher Build | -11 -10 -10 -8 -8 ------- Run | Yrd Mat Sub Rec Scr Slots Evolved . | . . . . . Power . | . . . . . Propulsion . | . . . . . Utility . | . . . . . Weapon . | . . . . . Parts Attached 52 | 9 4 15 6 18 Power 8 | 1 . 4 1 2 Engine 6 | 1 . 4 1 . Core 2 | . . . . 2 Reactor . | . . . . . Propulsion 17 | 3 . 4 . 10 Treads 14 | 2 . 3 . 9 Leg . | . . . . . Wheel 3 | 1 . 1 . 1 Hover . | . . . . . Flight . | . . . . . Utility 14 | 2 2 3 3 4 Device 1 | 1 . . . . Storage 3 | 1 1 . 1 . Processor 1 | . . . 1 . Hackware . | . . . . . Protection 9 | . 1 3 1 4 Artifact . | . . . . . Weapon 13 | 3 2 4 2 2 Energy Gun 1 | 1 . . . . Energy Cannon 4 | . . 1 2 1 Ballistic Gun 3 | 2 . . . 1 Ballistic Cannon 4 | . 2 2 . . Launcher 1 | . . 1 . . Special Weapon . | . . . . . Impact Weapon . | . . . . . Slashing Weapon . | . . . . . Piercing Weapon . | . . . . . Special Melee Weapon . | . . . . . Unidentified Prototypes . | . . . . . Parts Lost 9 | . . 6 . 3 Power 2 | . . 1 . 1 Propulsion 2 | . . 2 . . Utility 5 | . . 3 . 2 Weapon . | . . . . . Highest Loss Streak 2 | . . 2 . 1 To Critical Strikes . | . . . . . Average Backups 15 | 3 11 12 17 19 Power . | . . . 1 1 Propulsion 3 | 1 3 3 3 3 Utility 6 | . 5 4 5 9 Weapon 4 | 1 2 3 7 4 Tool/Special . | . . . . . Unused Backups 28 | . 3 4 1 20 Power 5 | . 1 1 . 3 Propulsion 1 | . . . . 1 Utility 14 | . 2 3 . 9 Weapon 7 | . . . 1 6 Tool/Special 1 | . . . . 1 Average Slot Usage (%) 99 | . 100 99 100 99 Engine 7 | . 14 13 14 . Core 5 | . . . . 13 Treads 22 | . 28 23 . 25 Wheel 5 | . . 4 28 2 Storage 14 | . 14 14 14 14 Protection 13 | . 13 14 14 13 Energy Cannon 11 | . . . 26 18 Ballistic Gun 4 | . 1 . . 9 Ballistic Cannon 11 | . 26 26 1 . Peak Build Rating 33 | 9 12 19 21 33 Average Rating 21 | 4 11 15 18 29 On Entrance 11 | . 9 12 19 19 Avg Prop Armor Cover (%) 7 | . . 8 . 7 Naked Turns . | . . . . . Heaviest Build 106 | 15 40 44 104 106 Greatest Support 44 | 40 40 40 36 44 Greatest Overweight (x) 6 | . . 2 2 6 Average Overweight (x) 1 | . . . 1 2 Largest Inventory Capacity 25 | 8 15 15 25 25 Average Capacity 20 | 6 13 15 24 25 Most Carried 25 | 5 15 15 25 25 Average Carried 19 | 3 12 14 21 24 Final Capacity 25 | 8 15 15 25 25 Final Carried 24 | 4 14 13 24 22 Class Distribution -------------------- 100% | Mutant Dominant Class ---------------- Mutant | -10/Materials Mutant | -10/Subcaves Mutant | -8/Recycling Mutant | -8/Scraptown Resources | -11 -10 -10 -8 -8 ----------- Run | Yrd Mat Sub Rec Scr Matter Collected 2100 | 236 330 907 391 236 Remotely . | . . . . . Salvage Created 1428 | 10 344 360 467 247 Parts 84 | 4 26 33 12 9 Haulers Intercepted 1 | . 1 . . . Recyclers Shooed 3 | . . . 3 . Parts Field Recycled . | . . . . . Retrieved Matter . | . . . . . Parts Self-Destructed 13 | . . 9 . 4 Prevented . | . . . . . Parts Restored . | . . . . . Kills | -11 -10 -10 -8 -8 ------- Run | Yrd Mat Sub Rec Scr Combat Hostiles Destroyed 38 | . 8 25 1 4 Guns 2 | . . . . 2 Cannons 29 | . 8 18 1 2 AOE 7 | . . 7 . . Classes Destroyed 11 | 1 6 1 1 2 Tunneler 1 | 1 . . . . Hauler 1 | . 1 . . . Recycler 3 | . 2 . 1 . Operator 2 | . 2 . . . Watcher 2 | . 2 . . . Swarmer 10 | . 3 7 . . Grunt 5 | . 5 . . . Sentry 1 | . . . 1 . Subdweller 18 | . . 18 . . Ranger 2 | . . . . 2 Scrapper 2 | . . . . 2 Best Kill Streak 3 | 1 3 3 1 1 Combat Bots Only 3 | . 3 3 1 1 Max Kills in Single Turn 2 | 1 1 2 1 1 Gunslinging . | . . . . . Exploded 2 | . . 2 . . Melee . | . . . . . Uniques/NPCs Destroyed . | . . . . . Combat | -11 -10 -10 -8 -8 -------- Run | Yrd Mat Sub Rec Scr Hostile Shots Fired 216 | . 25 131 2 58 Missed 50 | . 8 35 1 6 Hits 166 | . 17 96 1 52 Projectile 166 | . 17 96 1 52 Critical Strikes 4 | . . 3 . 1 Damage Taken 2544 | . 240 1739 15 550 Core 258 | . 32 182 . 44 Absorbed by Shields . | . . . . . Ignored by Resistances 10 | . . . . 10 Core Remaining (%) 100 | 100 . . . . Volleys Fired 224 | 2 36 116 41 29 Largest 2 | 2 2 2 2 2 Hottest 148 | 40 66 80 148 96 Shots Fired 344 | 4 64 195 41 40 Gun 16 | 4 . . . 12 Cannon 308 | . 64 175 41 28 Launcher 20 | . . 20 . . Special . | . . . . . Kinetic 246 | 4 64 166 . 12 Thermal 78 | . . 9 41 28 Explosive 20 | . . 20 . . Electromagnetic . | . . . . . Robot Hit Streak 25 | 1 12 25 8 13 Robot Miss Streak 4 | 1 2 4 1 2 Penetration Max . | . . . . . Secondary Targets . | . . . . . Shots Hit Robots 172 | 2 37 100 17 16 Core Hits 75 | 1 15 44 6 9 Critical Kills . | . . . . . Critical Parts Destroyed 1 | . . . . 1 Critical Strikes 6 | . 4 1 . 1 Destroy 1 | . . . . 1 Blast 5 | . 4 1 . . Melee Attacks . | . . . . . Impact . | . . . . . Slashing . | . . . . . Piercing . | . . . . . Sneak Attacks . | . . . . . Combat Hostiles . | . . . . . Follow-up Attacks . | . . . . . Damage Inflicted 4145 | 24 771 2726 331 293 Guns 121 | 24 . . . 97 Cannons 3264 | . 771 1966 331 196 Explosions 760 | . . 760 . . Melee . | . . . . . Ramming . | . . . . . Kinetic 2858 | 24 771 1966 . 97 Thermal 527 | . . . 331 196 Explosive 760 | . . 760 . . Electromagnetic . | . . . . . Impact . | . . . . . Slashing . | . . . . . Piercing . | . . . . . Highest Corruption 3 | . 3 3 3 3 Average Corruption 2 | . 2 3 3 3 Corruption Purged . | . . . . . Corruption Blocked . | . . . . . Effects 102 | . 14 64 24 . Message Errors 27 | . 5 15 7 . Matter Fused 17 | . 1 11 5 . Heat Flow Errors 13 | . 1 10 2 . Energy Discharges 14 | . 2 9 3 . Parts Fused 1 | . . 1 . . Data Loss (minor) 16 | . 1 9 6 . Data Loss (major) 7 | . 1 6 . . Misfires 3 | . . 3 . . Alerts 2 | . 2 . . . Weapon Failures 2 | . 1 . 1 . Overload Shots . | . . . . . Overflow Damage 43 | . 15 23 5 . Projectiles 32 | . 15 12 5 . Explosions 11 | . . 11 . . Melee . | . . . . . Knockbacks 31 | . 11 20 . . Impact . | . . . . . Kinetic 31 | . 11 20 . . Secondary . | . . . . . Self-Inflicted Damage 147 | . . 147 . . Shots 6 | . . 6 . . Rammed . | . . . . . Targets Rammed . | . . . . . Kicked . | . . . . . Crushed . | . . . . . Highest Temperature 321 | . 212 254 184 321 Average Temperature 73 | . 33 94 62 112 Received Heat Transfer 514 | . 39 213 9 253 Siege Activations . | . . . . . Martial Activations . | . . . . . Shielding Activations . | . . . . . Robots Disrupted . | . . . . . Combat Hostiles . | . . . . . Robots Corrupted . | . . . . . Combat Hostiles . | . . . . . Parts Fried . | . . . . . Impact Corruptions . | . . . . . Robots Melted . | . . . . . Combat Hostiles . | . . . . . Parts Melted 5 | . . . 2 3 Heat Transferred 926 | . . . 629 297 Parts Sabotaged . | . . . . . Parts Stolen . | . . . . . Parts Stripped . | . . . . . Power Chain Reactions . | . . . . . Alert | -11 -10 -10 -8 -8 ------- Run | Yrd Mat Sub Rec Scr Maximum Alert Level . | . . . . . Low Security (%) 100 | 100 100 . 100 . Level 1 . | . . . . . Level 2 . | . . . . . Level 3 . | . . . . . Level 4 . | . . . . . Level 5 . | . . . . . High Security . | . . . . . Max Security . | . . . . . Peak Influence 104 | 5 104 . 95 . Initial 95 | . 3 . 95 . Average 18 | . 28 . 10 . Influence Increases 710 | 5 341 295 69 . Destroy 0b10 Robot/C 320 | . 160 140 20 . Destroy 0b10 Robot/NC 65 | 5 35 . 25 . Destroy Leader 66 | . 46 20 . . Successful Hack 44 | . 36 . 8 . Disable Machine 45 | . 45 . . . Destroy Structure 20 | . 4 . 16 . Lose Combat Pursuer 150 | . 15 135 . . Influence Decreases 710 | . 346 96 268 . Entered New Map 106 | . 2 . 104 . Time Decay 521 | . 281 76 164 . Lost Part 20 | . . 20 . . Purge Threat 63 | . 63 . . . Squads Dispatched 2 | . 2 . . . Investigation 1 | . 1 . . . Extermination . | . . . . . Reinforcement 1 | . 1 . . . Assault . | . . . . . Garrison . | . . . . . Intercept . | . . . . . Searches Triggered . | . . . . . Construction Impeded . | . . . . . Haulers Reinforced . | . . . . . Active Scanning Responses . | . . . . . Cargo Convoy Interrupts . | . . . . . Stealth | -11 -10 -10 -8 -8 --------- Run | Yrd Mat Sub Rec Scr Distress Signals . | . . . . . Communications Jammed . | . . . . . Distress Signals . | . . . . . Times Spotted 66 | . 16 37 1 12 Peak Tracking Total 6 | . 3 6 1 4 Tactical Retreats 6 | . 1 4 . 1 Traps | -11 -10 -10 -8 -8 ------- Run | Yrd Mat Sub Rec Scr Traps Triggered 5 | . 4 1 . . Indirectly . | . . . . . Trap Hack Attempts . | . . . . . Triggered . | . . . . . Disarmed . | . . . . . Reprogrammed . | . . . . . Reused . | . . . . . Traps Extracted . | . . . . . Installed . | . . . . . Triggered . | . . . . . Machines | -11 -10 -10 -8 -8 ---------- Run | Yrd Mat Sub Rec Scr Machines Disabled 5 | . 3 1 . 1 Max in Single Turn 1 | . 1 1 . 1 Machines Repaired . | . . . . . Machines Dismantled . | . . . . . Machines Sabotaged . | . . . . . Overloaded Fab Kills . | . . . . . Hacking | -11 -10 -10 -8 -8 --------- Run | Yrd Mat Sub Rec Scr Machines Accessed 22 | . 7 3 5 7 Terminals 10 | . 5 . 5 . Fabricators . | . . . . . Repair Stations . | . . . . . Recycling Units 2 | . 2 . . . Scanalyzers . | . . . . . Garrison Access . | . . . . . Total Hacks 85 | . 26 5 14 40 Successful 61 | . 14 5 2 40 Failed 24 | . 12 . 12 . Catastrophic 3 | . 2 . 1 . Database Lockouts . | . . . . . Manual 29 | . 19 . 10 . Terminals 37 | . 23 . 14 . Fabricators . | . . . . . Repair Stations . | . . . . . Recycling Units 3 | . 3 . . . Scanalyzers . | . . . . . Garrison Access . | . . . . . Terminal Hacks 52 | . 5 5 2 40 Record 38 | . . 3 . 35 Robot Analysis 6 | . 1 . . 5 Open Door 1 | . . 1 . . Unreport Threat 1 | . 1 . . . Locate Traps 2 | . 2 . . . Security Status 1 | . . . 1 . Zone Layout 2 | . 1 . 1 . Proto ID Catalog 1 | . . 1 . . Fabricator Hacks . | . . . . . Repair Station Hacks . | . . . . . Recycling Unit Hacks . | . . . . . Scanalyzer . | . . . . . Garrison Access Hacks . | . . . . . Unauthorized Hacks 9 | . 9 . . . Terminals 7 | . 7 . . . Track 1 | . 1 . . . Assimilate 1 | . 1 . . . Botnet 1 | . 1 . . . Skim 4 | . 4 . . . Fabricators . | . . . . . Repair Stations . | . . . . . Recycling Units 2 | . 2 . . . Reject 2 | . 2 . . . Scanalyzers . | . . . . . Garrison Access . | . . . . . Data Cores Recovered . | . . . . . Used . | . . . . . Hacking Detections 9 | . 5 . 4 . Full Trace Events 1 | . 1 . . . Feedback Events 1 | . 1 . . . Corruption 1 | . 1 . . . Feedback Blocked . | . . . . . Robot Schematics Acquired . | . . . . . Robots Built . | . . . . . Authchips . | . . . . . Time . | . . . . . Total Robot Build Rating . | . . . . . Part Schematics Acquired . | . . . . . Parts Built . | . . . . . Authchips . | . . . . . Time . | . . . . . Total Part Build Rating . | . . . . . Part Studies Acquired . | . . . . . Parts Repaired . | . . . . . Time . | . . . . . Parts Recycled . | . . . . . Recycled Matter . | . . . . . Retrieved Matter . | . . . . . Retrieved Components . | . . . . . Parts Scanalyzed . | . . . . . Part Schematics Acquired . | . . . . . Parts Damaged . | . . . . . Bothacking | -11 -10 -10 -8 -8 ------------ Run | Yrd Mat Sub Rec Scr Used RIF Installer . | . . . . . Robots Hacked . | . . . . . Non-combat . | . . . . . Combat . | . . . . . Robot Hacks Applied . | . . . . . Relay Couplers Released . | . . . . . Fabnet Peak Effective % . | . . . . . Robots Rewired . | . . . . . Allies Hacked . | . . . . . Hacks Repelled . | . . . . . Allies | -11 -10 -10 -8 -8 -------- Run | Yrd Mat Sub Rec Scr Total Allies . | . . . . . Largest Group . | . . . . . Highest-Rated Group . | . . . . . Highest-Rated Ally . | . . . . . Total Orders . | . . . . . Ally Attacks . | . . . . . Total Damage . | . . . . . Kills . | . . . . . Allies Corrupted . | . . . . . Allies Melted 7 | . . . . 7 Intel | -11 -10 -10 -8 -8 ------- Run | Yrd Mat Sub Rec Scr Active Infowar (turns) 53 | 6 41 . 6 . Terrain 47 | 6 41 . . . Machine Analysis 6 | . . . 6 . Robot Analysis Total 6 | . 1 . . 5 Derelict Logs Recovered 4 | . . 2 . 2 Drone Launches . | . . . . . Drone Recoveries . | . . . . . Exploration | -11 -10 -10 -8 -8 ------------- Run | Yrd Mat Sub Rec Scr Turns Passed 10643 | 99 1000 3657 1176 4711 Spaces Moved 4941 | 56 479 2112 800 1494 Core 14 | 14 . . . . Treads 3286 | 39 479 1624 . 1144 Legs . | . . . . . Wheels 1641 | 3 . 488 800 350 Hover . | . . . . . Flight . | . . . . . Fastest Speed 50 | 50 160 117 117 129 Average Speed 185 | 129 160 151 128 275 Slowest Speed 570 | 160 160 160 129 570 Overloaded Moves . | . . . . . Propulsion Burnouts . | . . . . . Robots Hopped . | . . . . . Potential Cave-ins . | . . . . . Cave-ins Triggered . | . . . . . Exploration Rate (%) 75 | 4 90 95 98 90 Regions Visited 4 Branch Regions 3 Pre-discovered Areas 2 | . . 1 . 1 Known Exits Taken . | . . . . . Unknown Exits Taken 4 | 1 1 1 1 . Scrap Searched 13 | . . 6 . 7 Spaces Dug 30 | . 2 14 13 1 Terrain Destroyed 150 | . 3 123 21 3 Melee . | . . . . . Projectile 36 | . 3 9 21 3 AOE 114 | . . 114 . . Terrain Rammed . | . . . . . Walls Destroyed . | . . . . . Machines Disabled . | . . . . . Actions | -11 -10 -10 -8 -8 --------- Run | Yrd Mat Sub Rec Scr Total 6081 | 78 651 2375 910 2067 Wait 733 | 2 106 99 41 485 Move 4937 | 55 478 2111 799 1494 Hop . | . . . . . Pick Up 69 | 9 18 11 17 14 Fast Attach 8 | 2 . 3 1 2 Attach 17 | 6 . 7 1 3 Detach 1 | 1 . . . . Swap 39 | 1 4 15 4 15 Drop 53 | . 9 13 6 25 Fire 224 | 2 36 116 41 29 Melee . | . . . . . Ram . | . . . . . Kick . | . . . . . Crush . | . . . . . Escape Stasis . | . . . . . Rewire . | . . . . . Trap . | . . . . . Miscellaneous . | . . . . . Route ------- -11/Scrapyard -10/Materials (discovered 5 exits: [*Mat x3] / [*Min] / *Sub) -10/Subcaves (discovered 3 exits: [*Mat x2] / *Rec) -8/Recycling (discovered 2 exits: *Fac / *Scr) -8/Scraptown (discovered 2 exits: *Fac x2) History --------- Turn | Location | Event 9 | -11/Scrapyard | Discovered new exit (range 15) 100 | -11/Scrapyard | Entered Materials 312 | -10/Materials | Build established: Mutant 381 | -10/Materials | Discovered new exit (range 10) 441 | -10/Materials | Discovered new exit (range 10) 782 | -10/Materials | Discovered new exit (range 20) 1006 | -10/Materials | Discovered new exit (range 3) 1089 | -10/Materials | Discovered new exit (range 6) 1100 | -10/Materials | Entered Subcaves 1101 | -10/Subcaves | Approached by a straggling Scientist 1255 | -10/Subcaves | A swath of the cavern ceiling suddenly collapsed 1350 | -10/Subcaves | Shifting Twisted Machinery released Sub. Monowheel 1483 | -10/Subcaves | Visited 4L-MR0's lab 1508 | -10/Subcaves | Found Tower Shield 1588 | -10/Subcaves | Discovered new exit (range 5) 1809 | -10/Subcaves | Learned location of Zion (-6) 1809 | -10/Subcaves | Met a Zionite searching for "candidates" 2167 | -10/Subcaves | Learned 4 Materials zone layouts 2528 | -10/Subcaves | Core integrity fell below 50% 2594 | -10/Subcaves | Shifting Twisted Machinery released Barrage Gun 2597 | -10/Subcaves | Shifting Twisted Machinery released Flamer 2710 | -10/Subcaves | Ambushed by Subdweller buried in earth 2860 | -10/Subcaves | A Subdweller sparked back to life 2860 | -10/Subcaves | A Subdweller sparked back to life 2890 | -10/Subcaves | A Subdweller sparked back to life 2897 | -10/Subcaves | Ambushed by Subdweller buried in earth 2914 | -10/Subcaves | Found Flightbrick 2948 | -10/Subcaves | Shifting Twisted Machinery released Sub. Laser 2962 | -10/Subcaves | Shifting Twisted Machinery released Mak. System Restoration Module 3088 | -10/Subcaves | Core integrity fell below 20% 3185 | -10/Subcaves | Visited Clippyterm 3189 | -10/Subcaves | Learned Factory garrison access intel 3768 | -10/Subcaves | Discovered new exit (range 6) 3895 | -10/Subcaves | A swath of the cavern ceiling suddenly collapsed 4146 | -10/Subcaves | Learned Materials emergency access door positions 4754 | -10/Subcaves | Discovered new exit (range 3) 4757 | -10/Subcaves | Entered Recycling 5026 | -8/Recycling | Discovered new exit (range 13) 5902 | -8/Recycling | Scanned before Scraplab entrance 5920 | -8/Recycling | Entered Scraplab 5931 | -8/Recycling | Discovered new exit (range 2) 5933 | -8/Recycling | Entered Scraptown 5936 | -8/Scraptown | System corruption cleaned by C-Scrubber 6137 | -8/Scraptown | Visited Fellowship of the Rings 6150 | -8/Scraptown | Visited Science Testing Area 6170 | -8/Scraptown | Visited Supply Room 6190 | -8/Scraptown | Heard Great Nut preacher, LISTEN AND RECITE! 6203 | -8/Scraptown | Visited SPCMW 6242 | -8/Scraptown | Visited The Evicted 6264 | -8/Scraptown | Visited Cave Peace 6666 | -8/Scraptown | Learned location of Extension (-5) 7186 | -8/Scraptown | Scanned Subdweller tech in exchange for log data 7195 | -8/Scraptown | Learned Factory emergency access door positions 7235 | -8/Scraptown | Discovered new exit (range 11) 7538 | -8/Scraptown | Visited Cyclists 7636 | -8/Scraptown | Visited UFD Registry 7636 | -8/Scraptown | Registered with UFD as "Spikeglider" 7694 | -8/Scraptown | Entered Cyclist Reading Room 7886 | -8/Scraptown | Visited Analyses Database 7956 | -8/Scraptown | Visited Scrapoid Pod Storage 7972 | -8/Scraptown | Found Scrapoid Pod 8025 | -8/Scraptown | Visited DA-N13 Charitable Foundation 8049 | -8/Scraptown | Found DCF Scrap (27 items) 8671 | -8/Scraptown | Visited Chapter 10 8772 | -8/Scraptown | Visited Supply Room 8873 | -8/Scraptown | Visited Scrapoid Research Area 8916 | -8/Scraptown | Visited Derelict Rescue Squad 8992 | -8/Scraptown | Found DRS Beacon 9059 | -8/Scraptown | Visited A0-MCA Data Center 9106 | -8/Scraptown | Given a B- rating by A0-MCA 9110 | -8/Scraptown | Found A0-MCA's Component Scanner 9184 | -8/Scraptown | Visited Abandonware Association 9220 | -8/Scraptown | Learned abandonware demo "MELTYB.EXE" 9220 | -8/Scraptown | Learned abandonware demo "REBOOT5.EXE" 9316 | -8/Scraptown | Visited Modified Component R&D 9603 | -8/Scraptown | Met Optimus 9603 | -8/Scraptown | Accepted into 0bPrime 10003 | -8/Scraptown | Civil war broke out across Scraptown 10065 | -8/Scraptown | Lost 3 allies 10133 | -8/Scraptown | Identified exit to Factory 10146 | -8/Scraptown | Lost 3 allies 10329 | -8/Scraptown | Lost 7 allies 10506 | -8/Scraptown | Lost 5 allies 10626 | -8/Scraptown | Found Prototype Processor 10644 | -8/Scraptown | Destroyed by GY-E70(j) with Overtuned Pulse Rifle Last Messages --------------- 10520_ Critical hit (Burn: +50). 10537_ Acquired 4 matter. 10541_ Mak. Salvage Targeting Computer melted. 10541_ XQ-R4B(j) destroyed. 10542_ Acquired 4 matter. 10566_ QL-2EB(h) switches sides. 10567_ 2P-44C(E) suffers critical hit (Destroy). 10567_ Destroyed Ovr. Treads. 10568_ Bolt penetrates 2P-44C(E). 10568_ 2P-44C(E) destroyed. 10570_ Penetrated by Bolt. 10570_ Lgt. Fission Core destroyed. 10571_ QL-2EB(h) destroyed. 10574_ Acquired 14 matter. 10604_ Dropped Particle Cannon. 10604_ Acquired Mak. Hacking Suite. 10621_ UH-INP(g): "We will win here, and we will win in 0b1. Believe it." 10626_ Dropped Cooling System. 10626_ Acquired Prototype Processor. Map ----- +----------------------------------------------------+ | ?????????????????????????????????????????????????? | | ?????????????????????????????????????????????????? | | ?????????????????????????????????????????????????? | | ?????????????????????????????????????????????????? | | ?????????????????????????????????????????????????? | | ?????????????????????????????????????????????????? | | ?????????????????????????????????????????????????? | | ?????????????????????????????????????????????????? | | ?????????????????????????????????????????????????? | | ?????????????????????????????????????????????????? | | ??????????????????????????????????????????????